Workbook

Sheet Fonctionnement - A LIRE
G2: Classification 5 quilles Ligue Hauts de France
H3: Règles de fonctionnement
A4: Objectif :
A5: En début de saison 2008-2009, j'avais annoncé la réforme de la classification 5 quilles dans la ligue NPDC pour distinguer les catégories N1 et R1.
A6: Les objectifs de cette réforme étaient, et restent toujours, de limiter les différences trop importantes de niveaux par catégories, d'encourager la compétition et de favoriser la progression..
A8: Limiter les écarts de niveaux :
A9: La distinction des catégories N1 et R1 empêche les joueurs N1 de disputer les épreuves R1, donc elle permet de laisser aux joueurs de niveau plus modeste de disputer leur chance dans leur catégorie.
A10: Encourager la compétition :
A11: Conséquence logique de la première mesure, cet objectif sera également atteint en fixant un nombre minimum de matchs disputés pour permettre l'évaluation des joueurs
A12: ainsi qu'en valorisant le titre de champion de ligue R1 par la montée en N1.
A13: Favoriser la progression :
A14: Comme dans les autres modes de jeu, un joueur peut prétendre jouer dans la catégorie supérieure, dans ce cas, à lui de confirmer son niveau en se maintenant dans la catégorie supérieure.
A16: Fonctionnement de la classification :
A17: Evaluation glissante sur 2 saisons des résultats individuels obtenus par les joueurs dans leur catégorie. Tous les matchs individuels officiels sont pris en compte.
A18: Nombre minimum de matchs effectués pour évaluation : 10 matchs dans une même catégorie sur les 2 dernières saisons.
A19: Si un joueur n'a pas effectué 10 matchs sur les 2 dernières saisons, l'évaluation de ses résultats n'est pas faite et sa classification reste inchangée pour l'année suivante.
A20: Si un joueur ne joue pas pendant une ou plusieurs saisons, il reprend dans la catégorie qui était la sienne à son arrêt.
A21: Seuls les résultats de son année de reprise sont pris en compte.(saison précédente 0 matchs + nb matchs effectués l'année de reprise)
A23: Critères de descente en catégorie R1 :
A24: Pourcentage de matchs gagnés < 33% et pourcentage de sets gagnés < 33% (tous les matchs sont pris en compte)
A26: Critères de montée en catégorie N1
A27: Se situer dans au moins un des 3 cas ci-dessous :
A28: - Champion de ligue ou vice-champion de ligue de la saison en cours.
A29: - Pourcentage de matchs gagnés > 64,99% et de sets gagnés > 59,99% (tous les matchs individuels sont pris en compte)
A30: - Avoir confirmé en N1, c'est-à-dire avoir disputé au moins 10 matchs individuels en N1 sur les 2 dernières saisons et avoir un nombre de matchs gagnés > 32,99% ou un nombre de sets gagnés > 32,99%
A32: Nouveau joueur :
A33: Si joueur classé N2 ou mieux à la bande ou au 3 bandes ==> Classification de départ en 5 quilles N1 obligatoire.
A36: Jean-charles Wallart
A37: Responsable format 5 quilles Ligue Hauts de France
A38: jcwallart@fr.ibm.com

Sheet Classification
A1: Nom | B1: Prénom | C1: Licence | D1: Club | E1: Nom & Prénom | F1: CD | G1: Saison 2008 2009 | H1: Evol. | I1: Saison 2009 2010 | J1: Evol. | K1: Saison 2010 2011 | L1: Evol. | M1: Saison 2011 2012 | N1: Evol. | O1: Saison 2012 2013 | P1: Evol. | Q1: Saison 2013 2014 | R1: Evol. | S1: Saison 2014 2015 | T1: Evol. | U1: Saison 2015 2016 | V1: Evol. | W1: Saison 2016 2017 | X1: Evol. | Y1: Saison 2017 2018 | Z1: Evol. | AA1: Saison 2018 2019 | AB1: Evol. | AC1: Saison 2019 2020 | AD1: Dernier classement connu
A2: ALDEGUER | B2: Lionel | C2: 148619S | D2: GRANDE SYNTHE | E2: =A2 & " " & B2 -> ALDEGUER Lionel | F2: CD59 | Q2: R1 | R2: ▲ | S2: N1 | T2: = | U2: N1 | V2: ▼ | W2: R1 | X2: ▲ | Y2: N1 | Z2: = | AA2: N1 | AB2: = | AC2: N1 | AD2: 12ème qualifications CD59 N1 2018-2019 - 76ème classement tournois nationaux 2018-2019
A3: ALAZARD | B3: Philippe | C3: 012406E | D3: CREPY EN VALOIS | E3: ALAZARD Philippe | F3: CD60 | AA3: R1 | AB3: = | AC3: R1 | AD3: 6ème Qualifications CD60 R1 2018-2019
A4: ALEXANDRE | B4: Michel | C4: 120146A | D4: SENLIS | E4: ALEXANDRE Michel | F4: CD60 | W4: N1 | X4: = | Y4: N1 | Z4: = | AA4: N1 np | AB4: = | AC4: N1 | AD4: 45ème Classement National 2017 - 2018
A5: AZRIA | B5: Aaron | C5: 164108D | D5: SENLIS | E5: AZRIA Aaron | F5: CD60 | AA5: R1 | AB5: = | AC5: R1 | AD5: 3ème Finale CD60 Juniors 2018 - 2019
A6: BAHEUX | B6: David | C6: 107661V | D6: OUTREAU | E6: BAHEUX David | F6: CD62 | G6: N1 np | H6: = | I6: N1 np | J6: = | K6: N1 np | L6: = | M6: N1 np | N6: = | O6: N1 np | P6: = | Q6: N1 np | R6: = | S6: N1 np | T6: = | U6: N1 np | V6: = | W6: N1 np | X6: = | Y6: N1 np | Z6: = | AA6: N1 np | AB6: = | AC6: N1 | AD6: 3ème 1/2 Finale district maritime N1 2007-2008 ou antérieur
A7: BARBE | B7: Philippe | C7: 137526M | D7: SENLIS | E7: BARBE Philippe | F7: CD60 | W7: N1 | X7: = | Y7: N1 | Z7: = | AA7: N1 | AB7: = | AC7: N1 | AD7: 66ème classement tournois nationaux 2018-2019
A8: BARNO | B8: Cassandre | C8: 143081D | D8: DENAIN | E8: BARNO Cassandre | F8: CD59 | M8: R1 | N8: = | O8: R1 | P8: = | Q8: R1 np | R8: = | S8: R1 np | T8: = | U8: R1 np | V8: = | W8: R1 np | X8: = | Y8: R1 np | Z8: = | AA8: R2 np | AB8: = | AC8: R1 | AD8: 5ème Finale Ligue R1 2012-2013
A9: BARTHON | B9: Aurélie | C9: 162822F | D9: SENLIS | E9: BARTHON Aurélie | F9: CD60 | Y9: R1 | Z9: = | AA9: R1 np | AB9: = | AC9: R1 | AD9: 11ème Qualifications & 2ème Finale Dames CD60 R1 2017 - 2018
A10: BASTENIER | B10: Jean | C10: 017360S | D10: RONCHIN | E10: BASTENIER Jean | F10: CD59 | G10: R1 | H10: ▲ | I10: N1 | J10: = | K10: N1 | L10: = | M10: N1 np | N10: = | O10: N1 np | P10: = | Q10: N1 np | R10: = | S10: N1 np | T10: = | U10: N1 np | V10: = | W10: N1 np | X10: = | Y10: N1 np | Z10: = | AA10: N1 np | AB10: = | AC10: N1 | AD10: 30ème qualifications ligue N1 2010-2011
A11: BATTEUX | B11: Daniel | C11: 021005X | D11: PONT DE METZ | E11: BATTEUX Daniel | F11: CD80 | W11: N1 | X11: = | Y11: N1 | Z11: = | AA11: N1 | AB11: = | AC11: N1 | AD11: 9ème Qualifications CD80 N1 2018-2019
A12: BAUER | B12: Henri | C12: 112088C | D12: FRIVILLE | E12: BAUER Henri | F12: CD80 | AA12: R1 | AB12: = | AC12: R1 | AD12: NC 5Q - R1 Bande ==> R1 5Q
A13: BEGHIN | B13: Benjamin | C13: 145779X | D13: ANNOEULLIN | E13: BEGHIN Benjamin | F13: CD59 | W13: R1 | X13: = | Y13: R1 | Z13: = | AA13: R2 np | AB13: = | AC13: R1 | AD13: 10ème Qualifications CD59 R1 2017 - 2018
A14: BEGHIN | B14: Nicolas | C14: 148048X | D14: ANNOEULLIN | E14: BEGHIN Nicolas | F14: CD59 | W14: R1 | X14: = | Y14: R1 | Z14: = | AA14: R1 | AB14: = | AC14: R1 | AD14: 6ème Finale CD59 R1 2018-2019
A15: BEGUIN | B15: Jean-Luc | C15: 163765F | D15: ST POL SUR MER | E15: BEGUIN Jean-Luc | F15: CD59 | AA15: R2 | AB15: = | AC15: R1 | AD15: 4ème Finale CD59 R2 2018 - 2019
A16: BELLOC | B16: Adrien | C16: 154255T | D16: GRANDE SYNTHE | E16: BELLOC Adrien | F16: CD59 | S16: R1 | T16: = | U16: R1 np | V16: = | W16: R1 np | X16: = | Y16: R1 np | Z16: = | AA16: R2 np | AB16: = | AC16: R1 | AD16: 14ème qualifications CD59 R1 2014-2015
A17: BETTEFORT | B17: Clémence | C17: 153071G | D17: FRIVILLE | E17: BETTEFORT Clémence | F17: CD80 | Y17: R1 | Z17: = | AA17: R1 | AB17: = | AC17: R1 | AD17: 18ème Qualifications CD80 R1 2018-2019
A18: BETTEFORT | B18: Mickaël | C18: 137459X | D18: FRIVILLE | E18: BETTEFORT Mickaël | F18: CD80 | W18: R1 | X18: = | Y18: R1 | Z18: = | AA18: R1 | AB18: = | AC18: R1 | AD18: 11ème Qualifications CD80 R1 2018-2019
A19: BETTEFORT | B19: Véronique | C19: 165660Q | D19: FRIVILLE | E19: =A19 & " " & B19 -> BETTEFORT Véronique | F19: CD80 | AA19: R1 | AB19: = | AC19: R1 | AD19: 21ème Qualifications CD80 R1 2018-2019
A20: BLONDEEL | B20: Bruno | C20: 131428Y | D20: OUTREAU | E20: BLONDEEL Bruno | F20: CD62 | M20: R1 | N20: = | O20: R1 | P20: = | Q20: R1 np | R20: = | S20: R1 | T20: = | U20: R1 | V20: = | W20: R1 | X20: ▲ | Y20: N1 np | Z20: = | AA20: N1 np | AB20: = | AC20: N1 | AD20: 2ème Qualifications Maritime CD62 2016 2017
A21: BLONDEEL | B21: Firmin | C21: 133104K | D21: OUTREAU | E21: BLONDEEL Firmin | F21: CD62 | K21: R1 | L21: = | M21: R1 | N21: = | O21: R1 | P21: ▲ | Q21: N1 np | R21: = | S21: N1 | T21: = | U21: N1 | V21: = | W21: N1 np | X21: = | Y21: N1 np | Z21: = | AA21: N1 | AB21: = | AC21: N1 | AD21: 4ème Finale Ligue N1 2018-2019
A22: BLOUIN | B22: Nicolas | C22: 147753B | D22: CHAMBLY | E22: BLOUIN Nicolas | F22: CD60 | Y22: R1 | Z22: = | AA22: R1 np | AB22: = | AC22: R1 | AD22: 3ème Finale CD60 Juniors 2017 - 2018
A23: BOCQUET | B23: Jean-Luc | C23: 016577P | D23: BILLY MONTIGNY | E23: BOCQUET Jean-Luc | F23: CD62 | G23: N1 np | H23: = | I23: N1 np | J23: = | K23: N1 np | L23: = | M23: N1 np | N23: = | O23: N1 np | P23: = | Q23: N1 np | R23: = | S23: N1 np | T23: = | U23: N1 np | V23: = | W23: N1 np | X23: = | Y23: N1 np | Z23: = | AA23: N1 np | AB23: = | AC23: N1 | AD23: 8ème Tournoi N1 Artois 2007-2008 ou antérieur
A24: BOLLINNE | B24: Simon | C24: 150356F | D24: GUIGNICOURT | E24: BOLLINNE Simon | F24: CD02 | Y24: R1 | Z24: = | AA24: R1 np | AB24: = | AC24: R1 | AD24: 5ème finale CD02 R1 2017 - 2018
A25: BONNEAU | B25: Benoît | C25: 112124M | D25: CREPY EN VALOIS | E25: BONNEAU Benoît | F25: CD60 | W25: N1 | X25: = | Y25: N1 | Z25: = | AA25: N1 | AB25: = | AC25: N1 | AD25: 2ème Finale Ligue N1 2018-2019
A26: BOUBET | B26: Jean | C26: 121412S | D26: CUCQ | E26: BOUBET Jean | F26: CD62 | G26: R1 | H26: = | I26: R1 | J26: = | K26: R1 np | L26: = | M26: R1 np | N26: = | O26: R1 | P26: = | Q26: R1 | R26: = | S26: R1 np | T26: = | U26: R1 np | V26: = | W26: R1 | X26: ▲ | Y26: N1 | Z26: = | AA26: N1 np | AB26: = | AC26: N1 | AD26: 4ème Qualifications CD62 N1 2017 - 2018
A27: BOUCHART | B27: Christophe | C27: 016693B | D27: ST POL SUR MER | E27: BOUCHART Christophe | F27: CD59 | M27: R1 | N27: = | O27: R1 np | P27: = | Q27: R1 np | R27: = | S27: R1 np | T27: = | U27: R1 np | V27: = | W27: R1 np | X27: = | Y27: R1 np | Z27: = | AA27: R2 np | AB27: = | AC27: R1 | AD27: 9ème Qualifications CD59 R1 2011-2012
A28: BOUIGES | B28: Armelle | C28: 145645T | D28: SENLIS | E28: BOUIGES Armelle | F28: CD60 | W28: R1 | X28: = | Y28: R1 | Z28: = | AA28: R1 | AB28: = | AC28: R1 | AD28: 9ème Qualifications CD60 R1 2018-2019
A29: BOUILLET | B29: Antoine | C29: 105367P | D29: VILLENEUVE D'ASCQ | E29: BOUILLET Antoine | F29: CD59 | G29: N1 np | H29: = | I29: N1 np | J29: = | K29: N1 np | L29: = | M29: N1 np | N29: = | O29: N1 np | P29: = | Q29: N1 np | R29: = | S29: N1 np | T29: = | U29: N1 np | V29: = | W29: N1 np | X29: = | Y29: N1 np | Z29: = | AA29: N1 np | AB29: = | AC29: N1 | AD29: 4ème Finale district Flandre N1 2007-2008 ou antérieur
A30: BOULET | B30: Serge | C30: 130198Q | D30: FACHES-THUMESNIL | E30: BOULET Serge | F30: CD59 | G30: R1 | H30: = | I30: R1 np | J30: = | K30: R1 np | L30: = | M30: R1 np | N30: = | O30: R1 np | P30: = | Q30: R1 np | R30: = | S30: R1 np | T30: = | U30: R1 np | V30: = | W30: R1 np | X30: = | Y30: R1 np | Z30: = | AA30: R2 np | AB30: = | AC30: R1 | AD30: 12ème Qualifications CD59 R1 2008-2009
A31: BOULINGUEZ | B31: Yves | C31: 134472A | D31: LA FERRE | E31: BOULINGUEZ Yves | F31: CD02 | W31: R1 | X31: = | Y31: R1 | Z31: = | AA31: R1 | AB31: = | AC31: R1 | AD31: 4ème finale CD02 R1 2018 - 2019
A32: BOURGOGNE | B32: Claude | C32: 020831F | D32: GOUVIEUX | E32: BOURGOGNE Claude | F32: CD60 | W32: N1 | X32: = | Y32: N1 | Z32: = | AA32: N1 | AB32: ▼ | AC32: R1 | AD32: 11ème qualifications N1 CD60 2018-2019 - 77ème classement tournois nationaux 2018-2019
A33: BOUTEILLER | B33: Francis | C33: 102464Y | D33: MERU | E33: BOUTEILLER Francis | F33: CD60 | Y33: N1 | Z33: = | AA33: N1 np | AB33: = | AC33: N1 | AD33: 11ème Qualifications CD60 2017 - 2018
A34: BOZON | B34: Robert | C34: 165891R | D34: CREPY EN VALOIS | E34: =A34 & " " & B34 -> BOZON Robert | F34: CD60 | AA34: R1 | AB34: = | AC34: R1 | AD34: 13ème Qualifications CD60 R1 2018-2019
A35: BROUTIER | B35: Bertrand | C35: 101241X | D35: CUCQ | E35: BROUTIER Bertrand | F35: CD62 | AA35: R1 | AB35: = | AC35: R1 | AD35: 11ème Qualifications CD62 N1 2018 - 2019
A36: BRUYERE | B36: Michel | C36: 114150K | D36: VILLENEUVE D'ASCQ | E36: BRUYERE Michel | F36: CD59 | G36: R1 | H36: = | I36: R1 np | J36: = | K36: R1 np | L36: = | M36: R1 np | N36: = | O36: R1 np | P36: = | Q36: R1 np | R36: = | S36: R1 np | T36: = | U36: R1 np | V36: = | W36: R1 np | X36: = | Y36: R1 np | Z36: = | AA36: R2 np | AB36: = | AC36: R1 | AD36: 10ème Qualifications CD59 R1 2008-2009
A37: BUONDELMONTE | B37: Nazario | C37: 017134A | D37: DENAIN | E37: BUONDELMONTE Nazario | F37: CD59 | K37: R1 | L37: = | M37: R1 np | N37: = | O37: R1 np | P37: = | Q37: R1 np | R37: = | S37: R1 np | T37: = | U37: R1 np | V37: = | W37: R1 np | X37: = | Y37: R1 np | Z37: = | AA37: R2 np | AB37: = | AC37: R1 | AD37: 10ème Qualifications CD59 R1 2010-2011
A38: BURY | B38: Alain | C38: 016732O | D38: CAMBRAI | E38: BURY Alain | F38: CD59 | M38: N1 | N38: = | O38: N1 np | P38: = | Q38: N1 np | R38: = | S38: N1 np | T38: = | U38: N1 np | V38: = | W38: N1 np | X38: = | Y38: N1 np | Z38: = | AA38: N1 np | AB38: = | AC38: N1 | AD38: 42ème T3 National 2011-2012
A39: BUTTI | B39: Bertrand | C39: 155687A | D39: SAINT QUENTIN | E39: BUTTI Bertrand | F39: CD02 | W39: R1 | X39: = | Y39: R1 | Z39: = | AA39: R1 | AB39: = | AC39: R1 | AD39: 2ème finale CD02 R1 2018-2019 - 97ème classement tournois nationaux 2018-2019
A40: BUTTI | B40: EmIlie | C40: 157680R | D40: SAINT QUENTIN | E40: BUTTI EmIlie | F40: CD02 | W40: R1 | X40: = | Y40: R1 np | Z40: = | AA40: R1 np | AB40: = | AC40: R1 | AD40: 4ème Finale CD02 R1 2016 - 2017
A41: CABOCHE | B41: Marcel | C41: 017273J | D41: BILLY MONTIGNY | E41: CABOCHE Marcel | F41: CD62 | G41: N1 np | H41: = | I41: N1 np | J41: = | K41: N1 np | L41: = | M41: N1 np | N41: = | O41: N1 np | P41: = | Q41: N1 np | R41: = | S41: N1 np | T41: = | U41: N1 np | V41: = | W41: N1 np | X41: = | Y41: N1 np | Z41: = | AA41: N1 np | AB41: = | AC41: N1 | AD41: 3ème Tournoi N1 Artois 2007-2008 ou antérieur
A42: CABUZEL | B42: Denis | C42: 021206Q | D42: PONT DE METZ | E42: CABUZEL Denis | F42: CD80 | W42: R1 | X42: ▲ | Y42: N1 | Z42: ▼ | AA42: R1 | AB42: = | AC42: R1 | AD42: 8ème Qualifications CD80 R1 2018-2019
A43: CAPLIEZ | B43: Bernard | C43: 143595X | D43: CUCQ | E43: CAPLIEZ Bernard | F43: CD62 | Q43: R1 | R43: = | S43: R1 | T43: = | U43: R1 | V43: = | W43: R1 np | X43: = | Y43: R1 | Z43: ▲ | AA43: N1 | AB43: = | AC43: N1 | AD43: 7ème Qualifications CD62 N1 2018 - 2019
A44: CARPENTIER | B44: Yohanne | C44: 016914O | D44: ANNOEULLIN | E44: CARPENTIER Yohanne | F44: CD59 | G44: R1 | H44: ▲ | I44: N1 | J44: = | K44: N1 | L44: = | M44: N1 | N44: = | O44: N1 np | P44: = | Q44: N1 np | R44: = | S44: N1 np | T44: = | U44: N1 np | V44: = | W44: N1 np | X44: = | Y44: N1 np | Z44: = | AA44: N1 np | AB44: = | AC44: N1 | AD44: 37ème qualifications ligue N1 2013-2014
A45: CARRU | B45: Bruno | C45: 016650K | D45: DUNKERQUE | E45: CARRU Bruno | F45: CD59 | G45: R1 np | H45: = | I45: R1 | J45: = | K45: R1 np | L45: = | M45: R1 np | N45: = | O45: R1 np | P45: = | Q45: R1 np | R45: = | S45: R1 np | T45: = | U45: R1 np | V45: = | W45: R1 np | X45: = | Y45: R1 np | Z45: = | AA45: R2 np | AB45: = | AC45: R1 | AD45: 17ème Qualifications CD59 R1 2009-2010
A46: CARTIERE | B46: André | C46: 117749V | D46: CUCQ | E46: CARTIERE André | F46: CD62 | G46: R1 | H46: = | I46: R1 | J46: = | K46: R1 np | L46: = | M46: R1 | N46: = | O46: R1 | P46: = | Q46: R1 | R46: = | S46: R1 | T46: = | U46: R1 | V46: = | W46: R1 | X46: = | Y46: R1 | Z46: = | AA46: R1 | AB46: = | AC46: R1 | AD46: 5ème Qualifications CD62 N1 2018 - 2019
A47: CASARES | B47: Jacques | C47: 016867T | D47: CARVIN | E47: CASARES Jacques | F47: CD62 | G47: N1 np | H47: = | I47: N1 np | J47: = | K47: N1 np | L47: = | M47: N1 np | N47: = | O47: N1 np | P47: = | Q47: N1 np | R47: = | S47: N1 np | T47: = | U47: N1 np | V47: = | W47: N1 np | X47: = | Y47: N1 np | Z47: = | AA47: N1 np | AB47: = | AC47: N1 | AD47: 2ème Tournoi N1 Artois 2007-2008 ou antérieur
A48: CAUX | B48: Frédéric | C48: 017026W | D48: ANNOEULLIN | E48: CAUX Frédéric | F48: CD59 | G48: N1 | H48: = | I48: N1 | J48: = | K48: N1 | L48: = | M48: N1 | N48: = | O48: N1 | P48: = | Q48: N1 | R48: ▼ | S48: R1 | T48: ▲ | U48: N1 | V48: = | W48: N1 | X48: ▼ | Y48: R1 | Z48: = | AA48: R1 | AB48: = | AC48: R1 | AD48: 2ème Finale CD59 R1 2018-2019
A49: CAUX | B49: Grégory | C49: 147265W | D49: ANNOEULLIN | E49: CAUX Grégory | F49: CD59 | O49: N1 | P49: = | Q49: N1 | R49: = | S49: N1 | T49: = | U49: N1 np | V49: = | W49: N1 np | X49: = | Y49: N1 np | Z49: = | AA49: N1 np | AB49: = | AC49: N1 | AD49: 11ème qualifications ligue 2014-2015
A50: CAUX | B50: Patrick | C50: 129454A | D50: FRIVILLE | E50: CAUX Patrick | F50: CD80 | Y50: R1 | Z50: = | AA50: R1 | AB50: = | AC50: R1 | AD50: NC - Classé N3 Bande et 3B
A51: CHAIGNE | B51: Gilles | C51: 165846S | D51: PONT DE METZ | E51: =A51 & " " & B51 -> CHAIGNE Gilles | F51: CD80 | AA51: R1 | AB51: = | AC51: R1 | AD51: 5ème Finale Ligue R1 2018-2019
A52: CHARLES | B52: Dominique | C52: 135646E | D52: CREPY EN VALOIS | E52: CHARLES Dominique | F52: CD60 | W52: N1 | X52: = | Y52: N1 | Z52: = | AA52: N1 | AB52: = | AC52: N1 | AD52: 7ème Qualifications CD60 2018-2019
A53: CHENAL | B53: Gérard | C53: 142320W | D53: CHAMBLY | E53: CHENAL Gérard | F53: CD60 | W53: R1 | X53: = | Y53: R1 np | Z53: = | AA53: R1 | AB53: = | AC53: R1 | AD53: 14ème Qualifications CD60 R1 2018-2019
A54: CHEREAU | B54: Florian | C54: 127112Y | D54: LAON | E54: CHEREAU Florian | F54: CD02 | W54: N1 np | X54: = | Y54: N1 np | Z54: = | AA54: N1 np | AB54: = | AC54: N1 | AD54: 6ème CD02 N1 2015 - 2016
A55: CHOUX | B55: André | C55: 112123L | D55: GUIGNICOURT | E55: CHOUX André | F55: CD02 | W55: R1 | X55: = | Y55: R1 | Z55: = | AA55: R1 np | AB55: = | AC55: R1 | AD55: 10ème Qualifications CD02 R1 2017 - 2018
A56: CLAIRET | B56: Jean-Claude | C56: 016545J | D56: COURRIERES | E56: CLAIRET Jean-Claude | F56: CD62 | M56: R1 | N56: = | O56: R1 np | P56: = | Q56: R1 np | R56: = | S56: R1 np | T56: = | U56: R1 np | V56: = | W56: R1 np | X56: = | Y56: R1 np | Z56: = | AA56: R1 np | AB56: = | AC56: R1 | AD56: xxème Qualifications CD62 R1 Artois 2011-2012
A57: CLAIRET | B57: Jean-François | C57: 017331P | D57: COURRIERES | E57: CLAIRET Jean-François | F57: CD62 | G57: R1 | H57: = | I57: R1 np | J57: = | K57: R1 np | L57: = | M57: R1 np | N57: = | O57: R1 | P57: = | Q57: R1 np | R57: = | S57: R1 np | T57: = | U57: R1 np | V57: = | W57: R1 np | X57: = | Y57: R1 np | Z57: = | AA57: R1 np | AB57: = | AC57: R1 | AD57: xxème Qualifications CD62 R1 Artois 2012-2013
A58: CLYNCKE | B58: Jean-Jacques | C58: 017038I | D58: RONCHIN | E58: CLYNCKE Jean-Jacques | F58: CD59 | G58: N1 | H58: = | I58: N1 | J58: = | K58: N1 | L58: = | M58: N1 | N58: = | O58: N1 | P58: = | Q58: N1 | R58: = | S58: N1 | T58: = | U58: N1 | V58: = | W58: N1 | X58: = | Y58: N1 | Z58: = | AA58: N1 | AB58: = | AC58: N1 | AD58: 10ème qualifications CD59 N1 2018-2019 - 92ème classement tournois nationaux 2018-2019
A59: COFFRE | B59: Frédéric | C59: 154322R | D59: CUCQ | E59: COFFRE Frédéric | F59: CD62 | U59: R1 | V59: = | W59: R1 np | X59: = | Y59: R1 | Z59: = | AA59: R1 np | AB59: = | AC59: R1 | AD59: 11ème Qualifications CD62 R1 2017 - 2018
A60: COLAS | B60: Gerard | C60: 127114A | D60: LAON | E60: COLAS Gerard | F60: CD02 | Y60: R1 | Z60: = | AA60: R1 np | AB60: = | AC60: R1 | AD60: 4ème finale CD02 R1 2017 - 2018
A61: CORNOTE | B61: Robert | C61: 136328K | D61: PONT DE METZ | E61: CORNOTE Robert | F61: CD80 | Y61: R1 | Z61: = | AA61: R1 | AB61: = | AC61: R1 | AD61: NC - Classé R2 à la bande et R1 au 3B
A62: CORRE | B62: Maxime | C62: 148496J | D62: GUIGNICOURT | E62: CORRE Maxime | F62: CD02 | Y62: R1 | Z62: = | AA62: R1 np | AB62: = | AC62: R1 | AD62: 6ème finale CD02 R1 2017 - 2018
A63: COURCOL | B63: François | C63: 117712K | D63: ANNOEULLIN | E63: COURCOL François | F63: CD59 | AA63: R1 | AB63: = | AC63: R1 | AD63: 16ème Qualifications CD59 N1 2018-2019
A64: COUSIN | B64: Francis | C64: 160031X | D64: SAINT QUENTIN | E64: COUSIN Francis | F64: CD02 | Y64: R1 | Z64: = | AA64: R1 | AB64: = | AC64: R1 | AD64: 3ème Finale CD02 R1 2018 - 2019 - 110ème tournois nationaux 2018-2019
A65: CUVILLIER | B65: François | C65: 150498K | D65: PONT DE METZ | E65: CUVILLIER François | F65: CD80 | W65: R1 | X65: = | Y65: R1 | Z65: ▲ | AA65: N1 | AB65: = | AC65: N1 | AD65: 8ème Qualifications CD80 N1 2018-2019
A66: DA SILVA | B66: José | C66: 112137Z | D66: TERGNIER | E66: DA SILVA José | F66: CD02 | W66: R1 | X66: = | Y66: R1 np | Z66: = | AA66: R1 np | AB66: = | AC66: R1 | AD66: 2ème Finale CD02 R1 2016 - 2017
A67: DAMONNEVILLE | B67: Blandine | C67: 123321D | D67: MOREUIL | E67: DAMONNEVILLE Blandine | F67: CD80 | W67: R1 | X67: = | Y67: R1 | Z67: = | AA67: R1 np | AB67: = | AC67: R1 | AD67: 12ème Qualifications CD80 R1 2017 - 2018
A68: DEBOUDT | B68: Jean | C68: 017264A | D68: DUNKERQUE | E68: DEBOUDT Jean | F68: CD59 | I68: R1 | J68: = | K68: R1 np | L68: = | M68: R1 np | N68: = | O68: R1 np | P68: = | Q68: R1 np | R68: = | S68: R1 np | T68: = | U68: R1 np | V68: = | W68: R1 np | X68: = | Y68: R1 np | Z68: = | AA68: R2 np | AB68: = | AC68: R1 | AD68: 16ème Qualifications CD59 R1 2009-2010
A69: DECHAMPS | B69: Enguerrand | C69: 160760P | D69: VAUDESSON | E69: DECHAMPS Enguerrand | F69: CD02 | Y69: R1 | Z69: = | AA69: R1 np | AB69: = | AC69: R1 | AD69: 8ème Qualifications CD02 R1 2017 - 2018
A70: DECONINCK | B70: Franky | C70: 136119J | D70: FACHES-THUMESNIL | E70: DECONINCK Franky | F70: CD59 | M70: N1 | N70: = | O70: N1 | P70: = | Q70: N1 np | R70: = | S70: N1 | T70: = | U70: N1 np | V70: = | W70: N1 np | X70: = | Y70: N1 np | Z70: = | AA70: N1 np | AB70: = | AC70: N1 | AD70: 2ème finale Ligue N1 2014-2015
A71: DECOTTE | B71: Robert | C71: 146924A | D71: FRIVILLE | E71: DECOTTE Robert | F71: CD80 | AA71: R1 | AB71: = | AC71: R1 | AD71: NC 5Q R1 bande N3 3B ==> R1 5Q
A72: DEFENTE | B72: Bruno | C72: 118300A | D72: SOISSONS | E72: DEFENTE Bruno | F72: CD02 | W72: N1 | X72: = | Y72: N1 np | Z72: = | AA72: N1 np | AB72: = | AC72: N1 | AD72: 5ème Finale CD02 N1 2016 - 2017
A73: DELAFOSSE | B73: Gilles | C73: 154009B | D73: PONT DE METZ | E73: DELAFOSSE Gilles | F73: CD80 | W73: R1 | X73: = | Y73: R1 np | Z73: = | AA73: R1 np | AB73: = | AC73: R1 | AD73: 9ème Qualifications CD80 R1 2016 - 2017
A74: DELANDRE | B74: Michel | C74: 137687O | D74: GUIGNICOURT | E74: =A74 & " " & B74 -> DELANDRE Michel | F74: CD02 | W74: N1 | X74: = | Y74: N1 np | Z74: = | AA74: N1 np | AB74: = | AC74: N1 | AD74: 103ème Classement National 2016 - 2017
A75: DELAPORTE | B75: Laurent | C75: 021008A | D75: ABBEVILLE | E75: DELAPORTE Laurent | F75: CD80 | AA75: R1 | AB75: = | AC75: R1 | AD75: NC 5Q R1 bande N3 3B ==> R1 5Q
A76: DELATTRE | B76: Christian | C76: 017030A | D76: DIVION | E76: =A76 & " " & B76 -> DELATTRE Christian | F76: CD62 | I76: R1 | J76: = | K76: R1 np | L76: = | M76: R1 | N76: = | O76: R1 | P76: = | Q76: R1 np | R76: = | S76: R1 | T76: = | U76: R1 np | V76: = | W76: R1 np | X76: = | Y76: R1 np | Z76: = | AA76: R1 np | AB76: = | AC76: R1 | AD76: 4ème Finale CD62 R1 2016 - 2017
A77: DELATTRE | B77: Gregory | C77: 153535L | D77: GRANDE SYNTHE | E77: DELATTRE Gregory | F77: CD59 | S77: R1 | T77: = | U77: R1 np | V77: = | W77: R1 np | X77: = | Y77: R1 np | Z77: = | AA77: R2 np | AB77: = | AC77: R1 | AD77: 6ème Qualifications CD59 R1 2016-2017
A78: DELATTRE | B78: Hervé | C78: 119970G | D78: MOREUIL | E78: DELATTRE Hervé | F78: CD80 | W78: N1 | X78: = | Y78: N1 | Z78: = | AA78: N1 | AB78: = | AC78: N1 | AD78: 5ème Qualifications CD80 N1 2018-2019
A79: DELATTRE | B79: Julien | C79: 107632S | D79: DIVION | E79: DELATTRE Julien | F79: CD62 | G79: N1 np | H79: = | I79: N1 np | J79: = | K79: N1 np | L79: = | M79: N1 np | N79: = | O79: N1 np | P79: = | Q79: N1 np | R79: = | S79: N1 np | T79: = | U79: N1 np | V79: = | W79: N1 np | X79: = | Y79: N1 np | Z79: = | AA79: N1 np | AB79: = | AC79: N1 | AD79: 1er finale Ligue R1 2007-2008 ou antérieur
A80: DELATTRE | B80: Philippe | C80: 112747L | D80: DIVION | E80: DELATTRE Philippe | F80: CD62 | K80: R1 | L80: = | M80: R1 | N80: = | O80: R1 | P80: = | Q80: R1 np | R80: = | S80: R1 np | T80: = | U80: R1 np | V80: = | W80: R1 np | X80: = | Y80: R1 np | Z80: = | AA80: R1 np | AB80: = | AC80: R1 | AD80: xxème Qualifications CD62 R1 Artois 2012-2013
A81: DELECROIX | B81: Aymerick | C81: 140888U | D81: DIVION | E81: DELECROIX Aymerick | F81: CD62 | K81: R1 | L81: = | M81: R1 np | N81: = | O81: R1 np | P81: = | Q81: R1 np | R81: = | S81: R1 np | T81: = | U81: R1 np | V81: = | W81: R1 np | X81: = | Y81: R1 np | Z81: = | AA81: R1 np | AB81: = | AC81: R1 | AD81: xxème Qualifications CD62 R1 Artois 2010-2011
A82: DELEPIERRE | B82: Patrick | C82: 109142U | D82: FACHES-THUMESNIL | E82: DELEPIERRE Patrick | F82: CD59 | G82: N1 | H82: ▼ | I82: R1 | J82: = | K82: R1 np | L82: = | M82: R1 np | N82: = | O82: R1 np | P82: = | Q82: R1 np | R82: = | S82: R1 np | T82: = | U82: R1 np | V82: = | W82: R1 np | X82: = | Y82: R1 np | Z82: = | AA82: R2 np | AB82: = | AC82: R1 | AD82: xxème Tournois nationaux N1 2009-2010
A83: DELFORGE | B83: Benjamin | C83: 151362Z | D83: ANNOEULLIN | E83: DELFORGE Benjamin | F83: CD59 | Q83: R1 | R83: = | S83: R1 np | T83: = | U83: R1 np | V83: = | W83: R1 np | X83: = | Y83: R1 np | Z83: = | AA83: R2 np | AB83: = | AC83: R1 | AD83: 33ème Qualifications Ligue N1 2013-2014
A84: DELFOSSE | B84: Fabien | C84: 152796H | D84: SAINT QUENTIN | E84: DELFOSSE Fabien | F84: CD02 | Y84: R1 | Z84: = | AA84: R1 | AB84: ▲ | AC84: N1 | AD84: 2ème finale ligue R1 2018-2019 - 96ème classement tournois nationaux 2018-2019
A85: DELRUE | B85: André | C85: 105710U | D85: VILLENEUVE D'ASCQ | E85: DELRUE André | F85: CD59 | G85: R1 | H85: = | I85: R1 | J85: ▲ | K85: N1 | L85: = | M85: N1 np | N85: = | O85: N1 np | P85: = | Q85: N1 np | R85: = | S85: N1 np | T85: = | U85: N1 np | V85: = | W85: N1 np | X85: = | Y85: N1 np | Z85: = | AA85: N1 | AB85: = | AC85: N1 | AD85: 20ème Qualifications CD59 N1 2018-2019
A86: DELRUE | B86: Céline | C86: 162457J | D86: FRIVILLE | E86: DELRUE Céline | F86: CD80 | Y86: R1 | Z86: = | AA86: R1 | AB86: = | AC86: R1 | AD86: 17ème Qualifications CD80 R1 2018-2019
A87: DELSOL | B87: Philippe | C87: 101151L | D87: ANNOEULLIN | E87: DELSOL Philippe | F87: CD59 | G87: N1 | H87: = | I87: N1 | J87: = | K87: N1 | L87: ▲ | M87: Masters | N87: ▼ | O87: N1 | P87: = | Q87: N1 | R87: = | S87: Masters | T87: ▼ | U87: N1 | V87: = | W87: N1 | X87: = | Y87: N1 | Z87: ▲ | AA87: Masters | AB87: ▼ | AC87: N1 | AD87: 1er Qualifications CD59 N1 2018-2019
A88: DEMAZIERES | B88: David | C88: 016939N | D88: ST POL SUR MER | E88: DEMAZIERES David | F88: CD59 | I88: R1 | J88: = | K88: R1 np | L88: = | M88: R1 np | N88: = | O88: R1 np | P88: = | Q88: R1 np | R88: = | S88: R1 np | T88: = | U88: R1 np | V88: = | W88: R1 np | X88: = | Y88: R1 np | Z88: = | AA88: R2 np | AB88: = | AC88: R1 | AD88: 13ème Qualifications CD59 R1 2009-20010
A89: DEMILLY | B89: Dominique | C89: 017062G | D89: FACHES-THUMESNIL | E89: DEMILLY Dominique | F89: CD59 | G89: R1 | H89: = | I89: R1 | J89: = | K89: R1 np | L89: = | M89: R1 np | N89: = | O89: R1 np | P89: = | Q89: R1 np | R89: = | S89: R1 np | T89: = | U89: R1 np | V89: = | W89: R1 np | X89: = | Y89: R1 np | Z89: = | AA89: R2 np | AB89: = | AC89: R1 | AD89: 18ème Qualifications CD59 R1 2008-2009
A90: DEPLECHIN | B90: Robert | C90: 138329J | D90: CUCQ | E90: DEPLECHIN Robert | F90: CD62 | I90: R1 | J90: = | K90: R1 | L90: = | M90: R1 | N90: = | O90: R1 | P90: ▲ | Q90: N1 | R90: = | S90: N1 | T90: = | U90: N1 | V90: = | W90: N1 np | X90: = | Y90: N1 | Z90: = | AA90: N1 | AB90: = | AC90: N1 | AD90: 2ème Finale CD62 N1 2018 - 2019
A91: DEPLECHIN | B91: Roland | C91: 154167Y | D91: CUCQ | E91: DEPLECHIN Roland | F91: CD62 | U91: R1 | V91: = | W91: R1 | X91: = | Y91: R1 | Z91: = | AA91: R1 | AB91: ▲ | AC91: N1 | AD91: 4ème Finale CD62 R1 2018 - 2019
A92: DEREUDDRE | B92: Dominique | C92: 160916J | D92: GRANDE SYNTHE | E92: DEREUDDRE Dominique | F92: CD59 | Y92: R1 | Z92: = | AA92: R2 | AB92: = | AC92: R1 | AD92: 12ème Qualifications CD59 R1 2018-2019
A93: DEROLEZ | B93: Jean-Pierre | C93: 101152M | D93: ANNOEULLIN | E93: DEROLEZ Jean-Pierre | F93: CD59 | G93: R1 | H93: = | I93: R1 | J93: = | K93: R1 | L93: = | M93: R1 | N93: ▲ | O93: N1 | P93: = | Q93: N1 | R93: = | S93: N1 | T93: = | U93: N1 | V93: = | W93: N1 | X93: = | Y93: N1 | Z93: = | AA93: R1 | AB93: ▲ | AC93: N1 | AD93: 8ème Finale France N1 2018-2019
A94: DESBONNETS | B94: Clémentine | C94: 131440K | D94: DUNKERQUE | E94: DESBONNETS Clémentine | F94: CD59 | G94: R1 | H94: = | I94: R1 np | J94: = | K94: R1 np | L94: = | M94: R1 np | N94: = | O94: R1 np | P94: = | Q94: R1 np | R94: = | S94: R1 np | T94: = | U94: R1 np | V94: = | W94: R1 np | X94: = | Y94: R1 np | Z94: = | AA94: R2 np | AB94: = | AC94: R1 | AD94: 25ème Qualifications CD59 R1 2008-2009
A95: DESCLAIR | B95: Guy | C95: 137802C | D95: SENLIS | E95: DESCLAIR Guy | F95: CD60 | W95: N1 | X95: ▼ | Y95: R1 | Z95: = | AA95: R1 | AB95: = | AC95: R1 | AD95: 3ème Finale CD60 R1 2018-2019
A96: DESMETTRE | B96: Bruno | C96: 016604Q | D96: RONCHIN | E96: DESMETTRE Bruno | F96: CD59 | AA96: N1 | AB96: = | AC96: N1 | AD96: 14ème Qualifications CD59 N1 2018-2019
A97: DESSAINT | B97: Alain | C97: 016757N | D97: BILLY MONTIGNY | E97: DESSAINT Alain | F97: CD62 | K97: R1 | L97: = | M97: R1 np | N97: = | O97: R1 np | P97: = | Q97: R1 np | R97: = | S97: R1 np | T97: = | U97: R1 np | V97: = | W97: R1 np | X97: = | Y97: R1 np | Z97: = | AA97: R1 np | AB97: = | AC97: R1 | AD97: xxème Qualifications CD62 R1 Artois 2010-2011
A98: DESWELLE | B98: Jean-Pierre | C98: 016654O | D98: DUNKERQUE | E98: DESWELLE Jean-Pierre | F98: CD59 | G98: N1 np | H98: = | I98: N1 np | J98: = | K98: N1 np | L98: = | M98: N1 np | N98: = | O98: N1 np | P98: = | Q98: N1 np | R98: = | S98: N1 np | T98: = | U98: N1 np | V98: = | W98: N1 np | X98: = | Y98: N1 np | Z98: = | AA98: N1 np | AB98: = | AC98: N1 | AD98: 4ème Finale district maritime N1 2007-2008 ou antérieur
A99: DEVOS | B99: Jackie | C99: 121408O | D99: GRAVELINES | E99: DEVOS Jackie | F99: CD59 | G99: R1 | H99: = | I99: R1 | J99: ▲ | K99: N1 | L99: = | M99: N1 | N99: = | O99: N1 | P99: = | Q99: N1 | R99: = | S99: N1 | T99: = | U99: N1 | V99: = | W99: N1 np | X99: = | Y99: N1 | Z99: = | AA99: R1 np | AB99: = | AC99: R1 | AD99: 20ème Qualifications CD59 N1 2017 - 2018
A100: DEWEVRE | B100: Jordan | C100: 140888U | D100: DIVION | E100: DEWEVRE Jordan | F100: CD62 | I100: R1 | J100: = | K100: R1 | L100: = | M100: R1 np | N100: = | O100: R1 np | P100: = | Q100: R1 np | R100: = | S100: R1 np | T100: = | U100: R1 np | V100: = | W100: R1 np | X100: = | Y100: R1 np | Z100: = | AA100: R1 np | AB100: = | AC100: R1 | AD100: 4ème Finale CD62 2010-2011
A101: DIEU | B101: Jean-Charles | C101: 143987Z | D101: MOREUIL | E101: DIEU Jean-Charles | F101: CD80 | Y101: R1 | Z101: = | AA101: R1 | AB101: = | AC101: R1 | AD101: 10ème Qualifications CD80 R1 2018-2019 - 109ème ème tournois nationaux 2018-2019
A102: DIOT | B102: Alain | C102: 152487X | D102: CHAMBLY | E102: DIOT Alain | F102: CD60 | W102: R1 | X102: = | Y102: R1 np | Z102: = | AA102: R1 | AB102: = | AC102: R1 | AD102: 10ème Qualifications CD60 R1 2018-2019
A103: DONNEAU | B103: Philippe | C103: 138350E | D103: ANNOEULLIN | E103: DONNEAU Philippe | F103: CD59 | AA103: R2 | AB103: = | AC103: R1 | AD103: 19ème Qualifications CD59 N1 2018-2019
A104: DRUON | B104: Christian | C104: 017249L | D104: BILLY MONTIGNY | E104: DRUON Christian | F104: CD62 | M104: R1 | N104: = | O104: R1 | P104: = | Q104: R1 np | R104: = | S104: R1 np | T104: = | U104: R1 np | V104: = | W104: R1 np | X104: = | Y104: R1 np | Z104: = | AA104: R1 np | AB104: = | AC104: R1 | AD104: xxème Qualifications CD62 R1 Artois 2012-2013
A105: DUBOIS | B105: Jean-Bernard | C105: 151705X | D105: PONT DE METZ | E105: DUBOIS Jean-Bernard | F105: CD80 | W105: R1 | X105: = | Y105: R1 | Z105: = | AA105: R1 np | AB105: = | AC105: R1 | AD105: 6ème Qualifications CD80 R1 2017 - 2018
A106: DUCHATEAU | B106: Jean-Pierre | C106: 140116C | D106: CREPY EN VALOIS | E106: DUCHATEAU Jean-Pierre | F106: CD60 | W106: R1 | X106: = | Y106: R1 np | Z106: = | AA106: R1 np | AB106: = | AC106: R1 | AD106: 4ème Finale CD60 R1 2016 - 2017
A107: DUFRESNOY | B107: Michel | C107: 020761N | D107: PONT DE METZ | E107: DUFRESNOY Michel | F107: CD80 | W107: N1 | X107: ▼ | Y107: R1 | Z107: = | AA107: R1 | AB107: = | AC107: R1 | AD107: 3ème Finale CD80 R1 2018-2019
A108: DUHAMEL | B108: Eddy | C108: 021009B | D108: ABBEVILLE | E108: DUHAMEL Eddy | F108: CD80 | W108: N1 | X108: ▼ | Y108: R1 | Z108: = | AA108: R1 | AB108: ▲ | AC108: N1 | AD108: 4ème Finale CD80 R1 2018-2019
A109: DUHAMEL | B109: Marcellin | C109: 020868Q | D109: ABBEVILLE | E109: DUHAMEL Marcellin | F109: CD80 | W109: N1 | X109: ▼ | Y109: R1 | Z109: = | AA109: R1 | AB109: = | AC109: R1 | AD109: 12ème Qualifications CD80 R1 2018-2019
A110: DUMEIGE | B110: Similien | C110: 156348T | D110: MOREUIL | E110: DUMEIGE Similien | F110: CD80 | Y110: R1 | Z110: = | AA110: R1 | AB110: = | AC110: R1 | AD110: 5ème Qualifications CD80 R1 2018-2019
A111: DUMEIGE | B111: Stéphane | C111: 152672Y | D111: MOREUIL | E111: DUMEIGE Stéphane | F111: CD80 | Y111: R1 | Z111: = | AA111: R1 | AB111: ▲ | AC111: N1 | AD111: 2ème Finale CD80 R1 2018-2019 - 103ème tournois nationaux 2018-2019
A112: DUPONT | B112: Fabrice | C112: 020718W | D112: ABBEVILLE | E112: DUPONT Fabrice | F112: CD80 | W112: N1 | X112: = | Y112: N1 np | Z112: = | AA112: N1 | AB112: = | AC112: N1 | AD112: 5ème Finale Ligue N1 2018-2019
A113: DURAND | B113: Jérémy | C113: 125811X | D113: TERGNIER | E113: DURAND Jérémy | F113: CD02 | W113: N1 | X113: = | Y113: N1 np | Z113: = | AA113: N1 | AB113: = | AC113: N1 | AD113: 3ème qualifications CD02 N1 2018-2019
A114: DUROYON | B114: Didier | C114: 112201L | D114: MOREUIL | E114: DUROYON Didier | F114: CD80 | W114: N1 | X114: = | Y114: N1 | Z114: = | AA114: N1 | AB114: = | AC114: N1 | AD114: 3ème Finale CD80 N1 2018-2019
A115: DURTETTE | B115: Daniel | C115: 141367F | D115: LAON | E115: DURTETTE Daniel | F115: CD02 | Y115: R1 | Z115: = | AA115: R1 np | AB115: = | AC115: R1 | AD115: 11ème Qualifications CD02 R1 2017 - 2018
A116: DUSSART | B116: Paméla | C116: 017290A | D116: DIVION | E116: DUSSART Paméla | F116: CD62 | M116: R1 | N116: = | O116: R1 np | P116: = | Q116: R1 np | R116: = | S116: R1 np | T116: = | U116: R1 np | V116: = | W116: R1 np | X116: = | Y116: R1 np | Z116: = | AA116: R1 np | AB116: = | AC116: R1 | AD116: xxème Qualifications CD62 R1 Artois 2011-2012
A117: DUTAILLY | B117: Michel | C117: 151159D | D117: ST POL SUR MER | E117: DUTAILLY Michel | F117: CD59 | U117: R1 | V117: = | W117: R1 | X117: = | Y117: R1 | Z117: = | AA117: R2 | AB117: = | AC117: R1 | AD117: 11ème Qualifications CD59 R1 2018-2019
A118: ELIARD | B118: Cédric | C118: 020827B | D118: LAON | E118: ELIARD Cédric | F118: CD02 | W118: N1 np | X118: = | Y118: N1 np | Z118: = | AA118: N1 np | AB118: = | AC118: N1 | AD118: 8ème CD02 N1 2015 - 2016
A119: ELIARD | B119: Yvon | C119: 020682M | D119: LAON | E119: ELIARD Yvon | F119: CD02 | W119: N1 np | X119: = | Y119: N1 np | Z119: = | AA119: N1 np | AB119: = | AC119: N1 | AD119: 7ème CD02 N1 2015 - 2016
A120: ESTERMANS | B120: Bernard | C120: 138943Z | D120: GRAVELINES | E120: ESTERMANS Bernard | F120: CD59 | G120: R1 | H120: = | I120: R1 | J120: = | K120: R1 | L120: ▲ | M120: N1 | N120: = | O120: N1 | P120: = | Q120: N1 | R120: = | S120: N1 | T120: ▼ | U120: R1 | V120: = | W120: R1 | X120: = | Y120: R1 | Z120: = | AA120: R1 | AB120: ▲ | AC120: N1 | AD120: 3ème Finale CD59 R1 2018-2019
A121: FAUCOMPREZ | B121: Didier | C121: 0131015Z | D121: ANNOEULLIN | E121: FAUCOMPREZ Didier | F121: CD59 | K121: N1 | L121: = | M121: N1 np | N121: = | O121: N1 np | P121: = | Q121: N1 np | R121: = | S121: N1 np | T121: = | U121: N1 np | V121: = | W121: N1 np | X121: = | Y121: N1 np | Z121: = | AA121: N1 np | AB121: = | AC121: N1 | AD121: 17ème CF N1 2012-2013
A122: FAURE | B122: Stéphane | C122: 140114A | D122: CREPY EN VALOIS | E122: FAURE Stéphane | F122: CD60 | Y122: R1 | Z122: ▲ | AA122: N1 | AB122: = | AC122: N1 | AD122: 4ème Finale CD60 N1 2018-2019
A123: FERMAUT | B123: Jean-Marie | C123: 016918S | D123: DIVION | E123: FERMAUT Jean-Marie | F123: CD62 | G123: N1 | H123: = | I123: N1 np | J123: = | K123: N1 np | L123: = | M123: N1 np | N123: = | O123: N1 np | P123: = | Q123: N1 np | R123: = | S123: N1 np | T123: = | U123: N1 np | V123: = | W123: N1 np | X123: = | Y123: N1 np | Z123: = | AA123: N1 np | AB123: = | AC123: N1 | AD123: 12ème Tournoi N1 Artois 2007-2008 ou antérieur
A124: FLAHAUT | B124: Ghislain | C124: 159163D | D124: CUCQ | E124: FLAHAUT Ghislain | F124: CD62 | Y124: R1 | Z124: = | AA124: R1 | AB124: = | AC124: R1 | AD124: 9ème Qualifications CD62 N1 2018 - 2019
A125: FLEURANT | B125: Alexandre | C125: 141329T | D125: DENAIN | E125: FLEURANT Alexandre | F125: CD59 | M125: R1 | N125: = | O125: R1 | P125: = | Q125: R1 np | R125: = | S125: R1 np | T125: = | U125: R1 np | V125: = | W125: R1 np | X125: = | Y125: R1 np | Z125: = | AA125: R2 np | AB125: = | AC125: R1 | AD125: 4ème Finale CD59 R1 2012-2013
A126: FLEURANT | B126: Richard | C126: 016709R | D126: DENAIN | E126: FLEURANT Richard | F126: CD59 | G126: R1 | H126: = | I126: R1 | J126: = | K126: R1 | L126: = | M126: R1 | N126: ▲ | O126: N1 | P126: = | Q126: N1 | R126: = | S126: N1 np | T126: = | U126: N1 np | V126: = | W126: N1 np | X126: = | Y126: N1 np | Z126: = | AA126: N1 np | AB126: = | AC126: N1 | AD126: 2ème Finale Ligue R1 2011-2012
A127: FONTAINE | B127: Christian | C127: 112748M | D127: DIVION | E127: FONTAINE Christian | F127: CD62 | I127: R1 | J127: ▲ | K127: N1 | L127: = | M127: N1 np | N127: = | O127: N1 np | P127: = | Q127: N1 np | R127: = | S127: N1 np | T127: = | U127: N1 np | V127: = | W127: N1 np | X127: = | Y127: N1 np | Z127: = | AA127: N1 | AB127: = | AC127: N1 | AD127: 3ème Qualifications CD62 N1 2018 - 2019
A128: FONTAINE | B128: Dany | C128: 101139Z | D128: ANNOEULLIN | E128: FONTAINE Dany | F128: CD59 | AA128: N1 | AB128: = | AC128: N1 | AD128: 29ème Finale France N1 2018-2019
A129: FOULON | B129: Jeremy | C129: 138344Y | D129: CARVIN | E129: FOULON Jeremy | F129: CD62 | S129: R1 | T129: = | U129: R1 np | V129: = | W129: R1 np | X129: = | Y129: R1 np | Z129: = | AA129: R1 np | AB129: = | AC129: R1 | AD129: Nouveau joueur 2013-2014 - Pas de résultats connus
A130: FRADET | B130: David | C130: 133127H | D130: ST POL SUR MER | E130: FRADET David | F130: CD59 | S130: N1 | T130: = | U130: N1 np | V130: = | W130: N1 np | X130: = | Y130: N1 np | Z130: = | AA130: N1 np | AB130: = | AC130: N1 | AD130: 23ème qualifications ligue 2014-2015
A131: FRADET | B131: Noël | C131: 016695D | D131: ST POL SUR MER | E131: FRADET Noël | F131: CD59 | I131: R1 | J131: = | K131: R1 np | L131: = | M131: R1 np | N131: = | O131: R1 np | P131: = | Q131: R1 np | R131: = | S131: R1 np | T131: = | U131: R1 np | V131: = | W131: R1 np | X131: = | Y131: R1 np | Z131: = | AA131: R2 np | AB131: = | AC131: R1 | AD131: 8ème Qualifications CD59 R1 2009-2010
A132: FRISON | B132: Michel | C132: 152158N | D132: GUIGNICOURT | E132: FRISON Michel | F132: CD02 | W132: R1 | X132: ▲ | Y132: N1 | Z132: = | AA132: N1 np | AB132: = | AC132: N1 | AD132: 2ème Finale CD02 N1 2017 - 2018
A133: GAREST | B133: Olivier | C133: 102590U | D133: ABBEVILLE | E133: GAREST Olivier | F133: CD80 | AA133: R1 | AB133: = | AC133: R1 | AD133: NC
A134: GEETS | B134: Patrice | C134: 126847T | D134: ANNOEULLIN | E134: GEETS Patrice | F134: CD59 | G134: N1 | H134: = | I134: N1 | J134: = | K134: N1 | L134: = | M134: N1 | N134: = | O134: N1 | P134: = | Q134: N1 np | R134: = | S134: N1 | T134: = | U134: N1 | V134: = | W134: N1 | X134: = | Y134: N1 | Z134: = | AA134: N1 | AB134: = | AC134: N1 | AD134: 4ème Finale France N1 2018-2019
A135: GENNIN | B135: Jean-Robert | C135: 133074G | D135: VILLENEUVE D'ASCQ | E135: GENNIN Jean-Robert | F135: CD59 | G135: R1 | H135: = | I135: R1 np | J135: = | K135: R1 np | L135: = | M135: R1 np | N135: = | O135: R1 np | P135: = | Q135: R1 np | R135: = | S135: R1 np | T135: = | U135: R1 np | V135: = | W135: R1 np | X135: = | Y135: R1 np | Z135: = | AA135: R2 np | AB135: = | AC135: R1 | AD135: xxème Qualifications CD59 R1 Flandres < 2008
A136: GODARD | B136: Alain | C136: 152303X | D136: MOREUIL | E136: GODARD Alain | F136: CD80 | W136: N1 | X136: = | Y136: N1 | Z136: = | AA136: N1 | AB136: = | AC136: N1 | AD136: 20ème Finale France N1 2018-2019
A137: GODEFROIDT | B137: Michel | C137: 016859L | D137: RONCHIN | E137: GODEFROIDT Michel | F137: CD59 | G137: R1 np | H137: = | I137: R1 np | J137: = | K137: R1 np | L137: = | M137: R1 np | N137: = | O137: R1 np | P137: = | Q137: R1 np | R137: = | S137: R1 np | T137: = | U137: R1 np | V137: = | W137: R1 np | X137: = | Y137: R1 np | Z137: = | AA137: R2 np | AB137: = | AC137: R1 | AD137: 11ème Qualifications CD59 R1 2008-2009
A138: GOETINCK | B138: Frédéric | C138: 117692Q | D138: BILLY MONTIGNY | E138: GOETINCK Frédéric | F138: CD62 | M138: R1 | N138: = | O138: R1 np | P138: = | Q138: R1 np | R138: = | S138: R1 np | T138: = | U138: R1 np | V138: = | W138: R1 np | X138: = | Y138: R1 np | Z138: = | AA138: R1 np | AB138: = | AC138: R1 | AD138: 3ème Finale Ligue R1 2011-2012
A139: GORET | B139: Patrick | C139: 020963H | D139: GUIGNICOURT | E139: GORET Patrick | F139: CD02 | W139: N1 | X139: = | Y139: N1 | Z139: = | AA139: N1 | AB139: = | AC139: N1 | AD139: 3ème Finale CD02 N1 2017 - 2018
A140: GORAZDA | B140: Tom | C140: 149165L | D140: SOISSONS | E140: GORAZDA Tom | F140: CD02 | W140: N1 np | X140: = | Y140: N1 np | Z140: = | AA140: N1 np | AB140: = | AC140: N1 | AD140: 1er CD02 R1 2015 - 2016
A141: GREMAIN | B141: Gino | C141: 017226O | D141: WIZERNES | E141: GREMAIN Gino | F141: CD59 | G141: Masters | H141: = | I141: Masters | J141: = | K141: Masters | L141: = | M141: Masters | N141: = | O141: Masters | P141: ▼ | Q141: Masters | R141: = | S141: Masters | T141: ▼ | U141: N1 np | V141: = | W141: N1 np | X141: = | Y141: N1 np | Z141: = | AA141: N1 np | AB141: = | AC141: N1 | AD141: 20ème Classement ranking 2014-2015
A142: GROLLET | B142: Fabien | C142: 110544S | D142: VILLENEUVE D'ASCQ | E142: GROLLET Fabien | F142: CD59 | G142: N1 np | H142: = | I142: N1 | J142: = | K142: N1 np | L142: = | M142: N1 np | N142: = | O142: N1 np | P142: = | Q142: N1 | R142: = | S142: N1 np | T142: = | U142: N1 np | V142: = | W142: N1 np | X142: = | Y142: N1 np | Z142: = | AA142: N1 np | AB142: = | AC142: N1 | AD142: 22ème Qualifications Ligue N1 2013-2014
A143: GROSS | B143: Xavier | C143: 155562P | D143: VILLERS ST PAUL | E143: GROSS Xavier | F143: CD60 | AA143: R1 | AB143: = | AC143: R1 | AD143: 8ème Qualifications CD60 R1 2018-2019
A144: GUERIN | B144: Astrid | C144: 165938S | D144: MOREUIL | E144: GUERIN Astrid | F144: CD80 | AA144: R1 | AB144: = | AC144: R1 | AD144: 14ème Qualifications CD80 R1 2018-2019
A145: GUERIN | B145: Isabelle | C145: 159953M | D145: MOREUIL | E145: =A145 & " " & B145 -> GUERIN Isabelle | F145: CD80 | W145: R1 | X145: = | Y145: R1 | Z145: = | AA145: R1 np | AB145: = | AC145: R1 | AD145: 20ème Qualifications CD80 R1 2017 - 2018
A146: GUERIN | B146: Régis | C146: 149894D | D146: MOREUIL | E146: GUERIN Régis | F146: CD80 | W146: N1 | X146: = | Y146: N1 | Z146: = | AA146: N1 | AB146: = | AC146: N1 | AD146: 38ème tournois nationaux 2018-2019
A147: GUILBERT | B147: Raymond | C147: 016533X | D147: COURRIERES | E147: GUILBERT Raymond | F147: CD62 | O147: R1 | P147: = | Q147: R1 np | R147: = | S147: R1 np | T147: = | U147: R1 np | V147: = | W147: R1 np | X147: = | Y147: R1 np | Z147: = | AA147: R1 np | AB147: = | AC147: R1 | AD147: xxème Qualifications CD62 R1 Artois 2012-2013
A148: GUILLEMANT | B148: Alexandre | C148: 016874A | D148: ANNOEULLIN | E148: GUILLEMANT Alexandre | F148: CD59 | G148: Masters | H148: = | I148: Masters | J148: = | K148: Masters | L148: = | M148: Masters | N148: = | O148: Masters | P148: = | Q148: Masters np | R148: ▼ | S148: N1 np | T148: = | U148: N1 np | V148: = | W148: N1 np | X148: = | Y148: N1 np | Z148: = | AA148: N1 np | AB148: = | AC148: N1 | AD148: 2ème CF Masters 2012-2013
A149: GUILLEMANT | B149: David | C149: 016875B | D149: ANNOEULLIN | E149: GUILLEMANT David | F149: CD59 | G149: Masters | H149: = | I149: Masters | J149: = | K149: Masters | L149: = | M149: Masters | N149: = | O149: Masters | P149: = | Q149: Masters | R149: ▼ | S149: Masters | T149: = | U149: Masters | V149: = | W149: Masters | X149: = | Y149: Masters | Z149: = | AA149: Masters | AB149: = | AC149: N1 | AD149: 8ème CF Masters 2018-2019
A150: GUILLEMANT | B150: Jean-Marc | C150: 017025V | D150: ANNOEULLIN | E150: GUILLEMANT Jean-Marc | F150: CD59 | G150: N1 | H150: = | I150: N1 | J150: = | K150: N1 | L150: = | M150: N1 | N150: = | O150: N1 | P150: = | Q150: N1 np | R150: = | S150: N1 np | T150: = | U150: N1 np | V150: = | W150: N1 np | X150: = | Y150: N1 np | Z150: = | AA150: N1 np | AB150: = | AC150: N1 | AD150: 17ème T5 National 2012-2013
A151: GUILLUY | B151: Jean-René | C151: 146929F | D151: VILLENEUVE D'ASCQ | E151: GUILLUY Jean-René | F151: CD59 | O151: R1 | P151: = | Q151: R1 np | R151: = | S151: R1 np | T151: = | U151: R1 np | V151: = | W151: R1 np | X151: = | Y151: R1 np | Z151: = | AA151: R2 np | AB151: = | AC151: R1 | AD151: 34ème Qualifications Ligue N1 2012-2013
A152: HECQ | B152: Anthony | C152: 151267W | D152: VAUDESSON | E152: HECQ Anthony | F152: CD02 | Y152: R1 | Z152: = | AA152: R1 np | AB152: = | AC152: R1 | AD152: 3ème finale CD02 R1 2017 - 2018
A153: HENNEUSE | B153: Patrick | C153: 016721D | D153: BRUAY SUR ESCAUT | E153: HENNEUSE Patrick | F153: CD59 | G153: R1 np | H153: = | I153: R1 | J153: ▲ | K153: N1 | L153: = | M153: N1 np | N153: = | O153: N1 | P153: = | Q153: N1 np | R153: = | S153: N1 np | T153: = | U153: N1 np | V153: = | W153: N1 np | X153: = | Y153: N1 np | Z153: = | AA153: N1 np | AB153: = | AC153: N1 | AD153: 13ème Qualifications Ligue N1 2012-2013
A154: HENRY | B154: Tony | C154: 119963Z | D154: ABBEVILLE | E154: HENRY Tony | F154: CD80 | Y154: R1 | Z154: ▲ | AA154: N1 | AB154: = | AC154: N1 | AD154: 10ème Qualifications CD80 N1 2018-2019
A155: HERMANT | B155: Jacques | C155: 125113B | D155: CHALLANS | E155: HERMANT Jacques | F155: CD60 | W155: N1 | X155: = | Y155: N1 np | Z155: = | AA155: N1 np | AB155: = | AC155: N1 | AD155: 13ème Qualifications CD60 2016 - 2017
A156: HERREBRECHT | B156: Emerick | C156: 136110A | D156: GRAVELINES | E156: HERREBRECHT Emerick | F156: CD59 | Q156: R1 | R156: = | S156: R1 | T156: = | U156: R1 | V156: = | W156: R1 | X156: ▲ | Y156: N1 | Z156: = | AA156: R1 | AB156: = | AC156: R1 | AD156: 3ème CF Juniors 2018 - 2019
A157: HERREBRECHT | B157: Erian | C157: 146733P | D157: GRAVELINES | E157: HERREBRECHT Erian | F157: CD59 | Q157: R1 | R157: = | S157: R1 | T157: = | U157: R1 | V157: ▲ | W157: N1 | X157: ▼ | Y157: R1 | Z157: ▲ | AA157: N1 | AB157: = | AC157: N1 | AD157: 5ème CF Juniors 2018 - 2019
A158: HERREBRECHT | B158: Thierry | C158: 017224M | D158: GRAVELINES | E158: HERREBRECHT Thierry | F158: CD59 | G158: N1 | H158: ▲ | I158: Masters | J158: ▼ | K158: N1 | L158: ▲ | M158: Masters | N158: ▼ | O158: N1 | P158: = | Q158: N1 | R158: = | S158: Masters | T158: = | U158: Masters * | V158: ▼ | W158: N1 | X158: ▲ | Y158: Masters | Z158: = | AA158: Masters np | AB158: = | AC158: N1 | AD158: 10ème CF Masters 2017-2018
A159: HERSELIN | B159: Jean-Claude | C159: 136326I | D159: PONT DE METZ | E159: HERSELIN Jean-Claude | F159: CD80 | W159: R1 | X159: = | Y159: R1 | Z159: = | AA159: R1 | AB159: = | AC159: R1 | AD159: 13ème Qualifications CD80 R1 2018-2019
A160: HERTOUX | B160: Didier | C160: 020497J | D160: BEAUVAIS | E160: HERTOUX Didier | F160: CD60 | Y160: R1 | Z160: = | AA160: R1 np | AB160: = | AC160: R1 | AD160: 16ème Qualifications CD60 R1 2017 - 2018
A161: HILAIRE | B161: Jimmy | C161: 137050E | D161: LYON | E161: HILAIRE Jimmy | F161: CD59 | M161: R1 | N161: = | O161: R1 np | P161: = | Q161: R1 np | R161: = | S161: R1 np | T161: = | U161: R1 np | V161: = | W161: R1 np | X161: = | Y161: R1 np | Z161: = | AA161: R2 np | AB161: = | AC161: R1 | AD161: 10ème Qualifications CD59 R1 2011-2012
A162: HINGRAND | B162: Tony | C162: 151434C | D162: GRAVELINES | E162: HINGRAND Tony | F162: CD59 | S162: R1 | T162: ▲ | U162: N1 | V162: = | W162: N1 np | X162: = | Y162: N1 np | Z162: = | AA162: R1 np | AB162: = | AC162: R1 | AD162: 18ème Qualifications Ligue N1 2015-2016
A163: HOCHART | B163: James | C163: 127686A | D163: DENAIN | E163: HOCHART James | F163: CD59 | G163: R1 | H163: = | I163: R1 np | J163: = | K163: R1 | L163: = | M163: R1 | N163: = | O163: R1 | P163: = | Q163: R1 | R163: = | S163: R1 np | T163: = | U163: R1 | V163: = | W163: R1 np | X163: = | Y163: R1 np | Z163: = | AA163: R2 | AB163: = | AC163: R1 | AD163: 8ème Qualifications CD59 R1 2018-2019
A164: HORNAIN | B164: Denis | C164: 016710S | D164: DENAIN | E164: HORNAIN Denis | F164: CD59 | G164: N1 | H164: = | I164: N1 | J164: = | K164: N1 | L164: = | M164: N1 np | N164: = | O164: N1 | P164: ▼ | Q164: R1 np | R164: = | S164: R1 np | T164: = | U164: R1 np | V164: = | W164: R1 np | X164: = | Y164: R1 np | Z164: = | AA164: R1 np | AB164: = | AC164: R1 | AD164: 16ème Qualifications Ligue N1 2012-2013
A165: HULOT | B165: Sophie | C165: 133130K | D165: GRAVELINES | E165: HULOT Sophie | F165: CD59 | G165: R1 | H165: = | I165: R1 | J165: = | K165: R1 | L165: = | M165: R1 np | N165: = | O165: R1 np | P165: = | Q165: R1 np | R165: = | S165: R1 np | T165: = | U165: R1 np | V165: = | W165: R1 np | X165: = | Y165: R1 np | Z165: = | AA165: R2 np | AB165: = | AC165: R1 | AD165: 12ème Qualifications CD59 R1 2010-2011
A166: INTROLIGATOR | B166: Gilles | C166: 017872K | D166: LAON | E166: INTROLIGATOR Gilles | F166: CD02 | W166: N1 np | X166: = | Y166: N1 np | Z166: = | AA166: N1 np | AB166: = | AC166: N1 | AD166: 7ème CD02 N1 2015 - 2016
A167: JOLY | B167: Kenan | C167: 164983E | D167: ABBEVILLE | E167: JOLY Kenan | F167: CD80 | AA167: R1 | AB167: = | AC167: R1 | AD167: 16ème Qualifications CD80 R1 2018-2019
A168: KAYA | B168: Tugrul | C168: 130654E | D168: DUNKERQUE | E168: KAYA Tugrul | F168: CD59 | G168: N1 np | H168: = | I168: N1 np | J168: = | K168: N1 | L168: = | M168: N1 | N168: = | O168: N1 np | P168: = | Q168: N1 np | R168: = | S168: N1 np | T168: = | U168: N1 np | V168: = | W168: N1 np | X168: = | Y168: N1 np | Z168: = | AA168: N1 np | AB168: = | AC168: N1 | AD168: 13ème Qualifications Ligue N1 2011-2012
A169: KERKHOF | B169: Hervé | C169: 136114E | D169: GRAVELINES | E169: KERKHOF Hervé | F169: CD59 | S169: R1 | T169: ▲ | U169: N1 | V169: = | W169: N1 | X169: = | Y169: N1 | Z169: = | AA169: R1 | AB169: = | AC169: R1 | AD169: 9ème Qualifications CD59 R1 2018-2019
A170: KOWALSKI | B170: Christian | C170: ? | D170: DIVION | E170: KOWALSKI Christian | F170: CD62 | K170: R1 | L170: = | M170: R1 | N170: = | O170: R1 | P170: = | Q170: R1 np | R170: = | S170: R1 np | T170: = | U170: R1 np | V170: = | W170: R1 np | X170: = | Y170: R1 np | Z170: = | AA170: R1 np | AB170: = | AC170: R1 | AD170: 4ème Barrage Artois CD62 R1 2012-2013
A171: LAGATIE | B171: Clémence | C171: 127869B | D171: DUNKERQUE | E171: LAGATIE Clémence | F171: CD59 | G171: R1 | H171: = | I171: R1 np | J171: = | K171: R1 np | L171: = | M171: R1 np | N171: = | O171: R1 np | P171: = | Q171: R1 np | R171: = | S171: R1 np | T171: = | U171: R1 np | V171: = | W171: R1 np | X171: = | Y171: R1 np | Z171: = | AA171: R2 np | AB171: = | AC171: R1 | AD171: 21ème Qualifications CD59 R1 2008-2009
A172: LAKBAL | B172: Johnny | C172: 017027X | D172: DIVION | E172: LAKBAL Johnny | F172: CD62 | G172: R1 | H172: = | I172: R1 | J172: ▲ | K172: N1 np | L172: = | M172: N1 np | N172: = | O172: N1 np | P172: = | Q172: N1 np | R172: = | S172: N1 np | T172: = | U172: N1 np | V172: = | W172: N1 np | X172: = | Y172: N1 np | Z172: = | AA172: N1 | AB172: = | AC172: N1 | AD172: 3ème Finale CD62 N1 2018 - 2019
A173: LALOT | B173: Gérard | C173: 151719M | D173: CHAMBLY | E173: LALOT Gérard | F173: CD60 | W173: R1 | X173: = | Y173: R1 | Z173: = | AA173: R1 | AB173: = | AC173: R1 | AD173: 4ème Finale CD60 R1 2018-2019
A174: LAMARQUE | B174: Yves | C174: 155214L | D174: GOUVIEUX | E174: LAMARQUE Yves | F174: CD60 | W174: R1 | X174: = | Y174: R1 | Z174: = | AA174: R1 | AB174: = | AC174: R1 | AD174: 5ème Qualifications CD60 R1 2018-2019
A175: LAMBEAU | B175: Pierre-Louis | C175: 020812M | D175: FRIVILLE | E175: LAMBEAU Pierre-Louis | F175: CD80 | AA175: R1 | AB175: = | AC175: R1 | AD175: NC 5Q N3 3B N3 Bande ==> R1 5Q
A176: LAMBIASE | B176: Guiseppe | C176: 135143V | D176: GRAVELINES | E176: LAMBIASE Guiseppe | F176: CD59 | I176: N1 | J176: = | K176: N1 np | L176: = | M176: N1 np | N176: = | O176: N1 np | P176: = | Q176: N1 np | R176: = | S176: N1 np | T176: = | U176: N1 np | V176: = | W176: N1 np | X176: = | Y176: N1 np | Z176: = | AA176: N1 np | AB176: = | AC176: N1 | AD176: 3ème finale Ligue N1 2009-2010
A177: LANDRIN | B177: Christian | C177: 129395T | D177: CHAMBLY | E177: LANDRIN Christian | F177: CD60 | W177: N1 | X177: = | Y177: N1 np | Z177: = | AA177: N1 np | AB177: = | AC177: N1 | AD177: 19ème Qualifications CD60 2016 - 2017
A178: LANVIN | B178: Jean-Luc | C178: 114979H | D178: GRAVELINES | E178: LANVIN Jean-Luc | F178: CD59 | Q178: R1 | R178: = | S178: R1 np | T178: = | U178: R1 np | V178: = | W178: R1 np | X178: = | Y178: R1 np | Z178: = | AA178: R2 np | AB178: = | AC178: R1 | AD178: 6ème Finale CD59 R1 2013-2014
A179: LEBECQ | B179: Jean-Pierre | C179: 017263Y | D179: CUCQ | E179: LEBECQ Jean-Pierre | F179: CD62 | W179: R1 | X179: = | Y179: R1 | Z179: = | AA179: R1 np | AB179: = | AC179: R1 | AD179: 10ème Qualifications CD62 N1 2017 - 2018
A180: LEBLANC | B180: Jean-Noël | C180: 017175P | D180: DIVION | E180: LEBLANC Jean-Noël | F180: CD62 | I180: R1 | J180: = | K180: R1 | L180: ▲ | M180: N1 | N180: = | O180: N1 np | P180: = | Q180: N1 np | R180: = | S180: N1 np | T180: = | U180: N1 | V180: = | W180: N1 np | X180: = | Y180: N1 np | Z180: = | AA180: N1 np | AB180: = | AC180: N1 | AD180: 22ème Qualifications Ligue N1 2015-2016
A181: LEBORGNE | B181: Benjamin | C181: 162561X | D181: ABBEVILLE | E181: LEBORGNE Benjamin | F181: CD80 | AA181: R1 | AB181: = | AC181: R1 | AD181: NC
A182: LEBORGNE | B182: Corentin | C182: 160637F | D182: ABBEVILLE | E182: LEBORGNE Corentin | F182: CD80 | AA182: R1 | AB182: = | AC182: R1 | AD182: NC 5Q R4 Libre ==> R1 5Q
A183: LEBORGNE | B183: Hervé | C183: 162559V | D183: ABBEVILLE | E183: LEBORGNE Hervé | F183: CD80 | AA183: R1 | AB183: = | AC183: R1 | AD183: NC 5Q R4 Libre ==> R1 5Q
A184: LEBORGNE | B184: Léa | C184: 162560W | D184: ABBEVILLE | E184: =A184 & " " & B184 -> LEBORGNE Léa | F184: CD80 | AA184: R1 | AB184: = | AC184: R1 | AD184: NC 5Q R4 Libre ==> R1 5Q
A185: LECLERCQ | B185: Alain | C185: 017049T | D185: GRAVELINES | E185: LECLERCQ Alain | F185: CD59 | O185: R1 | P185: = | Q185: R1 np | R185: = | S185: R1 np | T185: = | U185: R1 | V185: = | W185: N1 np | X185: = | Y185: N1 np | Z185: = | AA185: R1 np | AB185: = | AC185: R1 | AD185: 23ème Qualifications Ligue N1 2015-2016
A186: LECROART | B186: Serge | C186: 016925Z | D186: VILLENEUVE D'ASCQ | E186: LECROART Serge | F186: CD59 | G186: N1 | H186: = | I186: N1 | J186: = | K186: N1 | L186: = | M186: N1 | N186: ▼ | O186: R1 | P186: = | Q186: R1 np | R186: = | S186: R1 | T186: ▲ | U186: N1 | V186: = | W186: N1 | X186: ▼ | Y186: R1 | Z186: = | AA186: R1 | AB186: = | AC186: R1 | AD186: 7ème Qualifications CD59 R1 2018-2019
A187: LEFEBVRE | B187: Gérard | C187: 143116M | D187: CREPY EN VALOIS | E187: LEFEBVRE Gérard | F187: CD60 | Y187: R1 | Z187: = | AA187: R1 np | AB187: = | AC187: R1 | AD187: 10ème Qualifications CD60 R1 2017 - 2018
A188: LEFEBVRE | B188: Julien | C188: 150703H | D188: COURRIERES | E188: LEFEBVRE Julien | F188: CD62 | S188: R1 | T188: = | U188: R1 np | V188: = | W188: R1 np | X188: = | Y188: R1 np | Z188: = | AA188: R1 np | AB188: = | AC188: R1 | AD188: Nouveau joueur 2014-2015 - Pas de résultats connus
A189: LEFORT | B189: Pierre | C189: 121379L | D189: DENAIN | E189: LEFORT Pierre | F189: CD59 | Y189: R1 | Z189: = | AA189: R2 np | AB189: = | AC189: R1 | AD189: 14ème Qualifications CD59 R1 2017 - 2018
A190: LE FRIEC | B190: Daniel | C190: 157672H | D190: CREPY EN VALOIS | E190: =A190 & " " & B190 -> LE FRIEC Daniel | F190: CD60 | AA190: R1 | AB190: = | AC190: R1 | AD190: 15ème Qualifications CD60 R1 2018-2019
A191: LEGER | B191: Emmanuel | C191: 148304A | D191: GOUVIEUX | E191: LEGER Emmanuel | F191: CD60 | W191: R1 | X191: = | Y191: R1 np | Z191: = | AA191: R1 np | AB191: = | AC191: R1 | AD191: 23ème Qualifications CD60 2016 - 2017
A192: LE GOHEBEL | B192: Jacques | C192: 127679T | D192: VILLENEUVE D'ASCQ | E192: LE GOHEBEL Jacques | F192: CD59 | AA192: R2 | AB192: = | AC192: R1 | AD192: 13ème Qualifications CD59 R1 2018-2019
A193: LEGRAND | B193: Francis | C193: 016768Y | D193: DIVION | E193: LEGRAND Francis | F193: CD62 | K193: R1 | L193: = | M193: R1 | N193: = | O193: R1 | P193: = | Q193: R1 np | R193: = | S193: R1 | T193: = | U193: R1 np | V193: = | W193: R1 np | X193: = | Y193: R1 np | Z193: = | AA193: R1 np | AB193: = | AC193: R1 | AD193: 4ème Finale CD62 R1 2014-2015
A194: LEMATRE | B194: Alexis | C194: 133123D | D194: GRAVELINES | E194: LEMATRE Alexis | F194: CD59 | S194: R1 | T194: ▲ | U194: N1 | V194: = | W194: N1 | X194: = | Y194: N1 | Z194: = | AA194: N1 | AB194: ▲ | AC194: Masters | AD194: 12ème CF Masters 2018-2019
A195: LEMATRE | B195: Jérémy | C195: 127735X | D195: GRAVELINES | E195: LEMATRE Jérémy | F195: CD59 | G195: R1 | H195: = | I195: R1 | J195: ▲ | K195: N1 | L195: = | M195: N1 np | N195: = | O195: N1 | P195: = | Q195: N1 np | R195: = | S195: N1 | T195: = | U195: N1 | V195: = | W195: N1 | X195: = | Y195: N1 | Z195: = | AA195: N1 | AB195: = | AC195: N1 | AD195: 3ème Finale CD59 N1 2018-2019
A196: LERICQUE | B196: Pierre | C196: 016769Z | D196: DIVION | E196: LERICQUE Pierre | F196: CD62 | G196: R1 | H196: = | I196: R1 | J196: = | K196: R1 | L196: = | M196: R1 | N196: = | O196: R1 | P196: = | Q196: R1 np | R196: = | S196: R1 np | T196: = | U196: R1 np | V196: = | W196: R1 np | X196: = | Y196: R1 np | Z196: = | AA196: R1 np | AB196: = | AC196: R1 | AD196: xxème Qualifications CD62 R1 Artois 2012-2013
A197: LEROUX | B197: Alain | C197: 016750G | D197: LENS | E197: LEROUX Alain | F197: CD62 | G197: N1 np | H197: = | I197: N1 np | J197: = | K197: N1 np | L197: = | M197: N1 np | N197: = | O197: N1 np | P197: = | Q197: N1 np | R197: = | S197: N1 np | T197: = | U197: N1 np | V197: = | W197: N1 np | X197: = | Y197: N1 np | Z197: = | AA197: N1 np | AB197: = | AC197: N1 | AD197: 9ème Tournoi N1 Artois 2007-2008 ou antérieur
A198: LHERMITTE | B198: Cédric | C198: 016910K | D198: BILLY MONTIGNY | E198: LHERMITTE Cédric | F198: CD59 | I198: N1 | J198: = | K198: N1 | L198: = | M198: N1 | N198: = | O198: N1 | P198: = | Q198: N1 | R198: = | S198: N1 np | T198: = | U198: N1 np | V198: = | W198: N1 np | X198: = | Y198: N1 np | Z198: = | AA198: N1 np | AB198: = | AC198: N1 | AD198: 3ème CF N1 2013-2014
A199: LHOEST | B199: Patrick | C199: 129465L | D199: PONT DE METZ | E199: LHOEST Patrick | F199: CD80 | W199: N1 | X199: = | Y199: N1 | Z199: = | AA199: N1 np | AB199: = | AC199: N1 | AD199: 7ème Qualifications CD80 N1 2017 - 2018
A200: LORGE | B200: Thierry | C200: 013613P | D200: SENLIS | E200: LORGE Thierry | F200: CD60 | W200: N1 | X200: = | Y200: N1 | Z200: = | AA200: N1 | AB200: = | AC200: N1 | AD200: 3ème Finale CD60 N1 2018-2019 - 50ème tournois nationaux 2018-2019
... 130 more rows
